fUSD/lending_fUSD_20240421
["ID","MTS","AMOUNT","RATE_DAILY","PERIOD"]
[323141380,1713708643910,-500.0,0.00016884,2]
[323141381,1713708643920,-500.0,0.00016884,2]
[323141382,1713708643930,-500.0,0.00016884,2]
[323141383,1713708643939,-500.0,0.00016884,2]
[323141384,1713708643949,-500.0,0.00016884,2]
[323141385,1713708643959,-505.61,0.00016884,2]
[323141386,1713708643969,-1004.24,0.00016884,2]
[323141387,1713708643979,-557.53,0.00016884,2]
[323141388,1713708643988,-500.0,0.00016884,2]
[323141389,1713708643998,-952.39,0.00016884,2]
[323141390,1713708644007,-2237.54,0.00016884,2]
[323141391,1713708644017,-500.0,0.00016884,2]
[323141392,1713708644026,-500.0,0.00016884,2]
[323141393,1713708644035,-1307.71,0.00016884,2]
[323141394,1713708644044,-500.0,0.00016884,2]
[323141395,1713708644053,-994.17,0.00016884,2]
[323141396,1713708644065,-500.0,0.00016884,2]
[323141397,1713708644075,-533.64095566,0.00016884,2]
[323141398,1713708644084,-1008.56,0.00016884,2]
[323141399,1713708644093,-615.19,0.00016884,2]
[323141400,1713708644102,-500.0,0.00016885,2]
[323141401,1713708644114,-677.37,0.00016885,2]
[323141402,1713708644124,-500.0,0.00016885,2]
[323141403,1713708644133,-500.0,0.00016885,2]
[323141404,1713708644143,-500.0,0.00016885,2]
[323141405,1713708644153,-500.0,0.00016885,2]
[323141406,1713708644162,-500.0,0.00016885,2]
[323141407,1713708644171,-500.0,0.00016885,2]
[323141408,1713708644181,-606.64,0.00016885,2]
[323141409,1713708644190,-502.64,0.00016885,2]
[323141410,1713708644199,-500.0,0.00016885,2]
[323141411,1713708644210,-500.0,0.00016885,2]
[323141412,1713708644220,-500.0,0.00016885,2]
[323141413,1713708644229,-500.0,0.00016885,2]
[323141414,1713708644239,-500.0,0.00016885,2]
[323141415,1713708644249,-500.0,0.00016885,2]
[323141416,1713708644258,-500.0,0.00016885,2]
[323141417,1713708644270,-500.0,0.00016885,2]
[323141418,1713708644281,-500.0,0.00016885,2]
[323141419,1713708644293,-610.51,0.00016885,2]
[323141420,1713708644304,-500.0,0.00016885,2]
[323141421,1713708644316,-500.0,0.00016885,2]
[323141422,1713708644326,-500.0,0.00016885,2]
[323141423,1713708644335,-500.0,0.00016885,2]
[323141424,1713708644345,-500.0,0.00016885,2]
[323141425,1713708644355,-500.0,0.00016885,2]
[323141426,1713708644365,-500.0,0.00016885,2]
[323141427,1713708644375,-258.64851801,0.00016885,2]
[323141428,1713708644384,-500.0,0.00016885,2]
[323141429,1713708644396,-500.0,0.00016885,2]
[323141430,1713708644406,-500.0,0.00016885,2]
[323141431,1713708644416,-511.20588923,0.00016885,2]
[323141432,1713708644426,-594.22,0.00016885,2]
[323141433,1713708644437,-500.0,0.00016885,2]
[323141434,1713708644447,-500.0,0.00016885,2]
[323141435,1713708644457,-500.0,0.00016885,2]
[323141436,1713708644468,-500.0,0.00016885,2]
[323141437,1713708644478,-500.0,0.00016885,2]
[323141438,1713708644488,-500.0,0.00016885,2]
[323141439,1713708644498,-575.4,0.00016885,2]
[323141440,1713708644508,-500.0,0.00016885,2]
[323141441,1713708644518,-500.0,0.00016885,2]
[323141442,1713708644528,-500.0,0.00016885,2]
[323141443,1713708644539,-500.0,0.00016885,2]
[323141444,1713708644549,-500.0,0.00016885,2]
[323141445,1713708644562,-500.0,0.00016885,2]
[323141446,1713708644574,-500.0,0.00016885,2]
[323141447,1713708644585,-601.09,0.00016885,2]
[323141448,1713708644596,-500.0,0.00016885,2]
[323141449,1713708644606,-500.0,0.00016885,2]
[323141450,1713708644618,-1175.54,0.00016885,2]
[323141451,1713708644627,-500.0,0.00016885,2]
[323141452,1713708644639,-537.65,0.00016885,2]
[323141453,1713708644648,-500.0,0.00016885,2]
[323141454,1713708644659,-500.0,0.00016885,2]
[323141455,1713708644670,-500.0,0.00016885,2]
[323141456,1713708644679,-500.0,0.00016885,2]
[323141457,1713708644690,-500.0,0.00016885,2]
[323141458,1713708644701,-500.0,0.00016885,2]
[323141459,1713708644711,-551.36,0.00016885,2]
[323141460,1713708644721,-500.0,0.00016885,2]
[323141461,1713708644731,-500.0,0.00016885,2]
[323141462,1713708644741,-500.0,0.00016885,2]
[323141463,1713708644752,-500.0,0.00016885,2]
[323141464,1713708644762,-500.0,0.00016885,2]
[323141465,1713708644772,-500.0,0.00016885,2]
[323141466,1713708644783,-500.0,0.00016885,2]
[323141467,1713708644795,-500.0,0.00016885,2]
[323141468,1713708644806,-500.0,0.00016885,2]
[323141469,1713708644819,-906.32,0.00016885,2]
[323141470,1713708644829,-500.0,0.00016885,2]
[323141471,1713708644839,-566.2,0.00016885,2]
[323141472,1713708644850,-500.0,0.00016885,2]
[323141473,1713708644860,-500.0,0.00016885,2]
[323141474,1713708644869,-500.0,0.00016885,2]
[323141475,1713708644879,-902.31,0.00016885,2]
[323141476,1713708644889,-500.0,0.00016885,2]
[323141477,1713708644901,-500.0,0.00016885,2]
[323141478,1713708644911,-500.0,0.00016885,2]
[323141479,1713708644920,-498.63538011,0.00016885,2]
[323141480,1713708644929,-500.0,0.00016885,2]
[323141481,1713708644938,-500.0,0.00016885,2]
[323141482,1713708644947,-500.0,0.00016885,2]
[323141483,1713708644957,-500.0,0.00016885,2]
[323141484,1713708644967,-500.0,0.00016885,2]
[323141485,1713708644978,-500.0,0.00016885,2]
[323141486,1713708644988,-500.0,0.00016885,2]
[323141487,1713708644997,-500.0,0.00016885,2]
[323141488,1713708645006,-624.32,0.00016885,2]
[323141489,1713708645016,-500.0,0.00016885,2]
[323141490,1713708645026,-500.0,0.00016885,2]
[323141491,1713708645035,-500.0,0.00016885,2]
[323141492,1713708645044,-500.0,0.00016885,2]
[323141493,1713708645053,-576.62,0.00016885,2]
[323141494,1713708645062,-500.0,0.00016885,2]
[323141495,1713708645072,-500.0,0.00016885,2]
[323141496,1713708645082,-500.0,0.00016885,2]
[323141497,1713708645092,-370.42095152,0.00016885,2]
[323141498,1713708645102,-576.39205073,0.00016885,2]
[323141499,1713708645111,-500.0,0.00016885,2]
[323141500,1713708645120,-500.0,0.00016885,2]
[323141501,1713708645129,-500.0,0.00016885,2]
[323141502,1713708645139,-500.0,0.00016885,2]
[323141503,1713708645148,-500.0,0.00016885,2]
[323141504,1713708645157,-500.0,0.00016885,2]
[323141505,1713708645166,-500.0,0.00016885,2]
[323141506,1713708645174,-538.49,0.00016885,2]
[323141507,1713708645183,-528.87,0.00016885,2]
[323141508,1713708645192,-560.39,0.00016885,2]
[323141509,1713708645201,-500.0,0.00016885,2]
[323141510,1713708645210,-500.0,0.00016885,2]
[323141511,1713708645219,-500.0,0.00016885,2]
[323141512,1713708645227,-500.0,0.00016885,2]
[323141513,1713708645236,-500.0,0.00016885,2]
[323141514,1713708645245,-500.0,0.00016885,2]
[323141515,1713708645254,-500.0,0.00016885,2]
[323141516,1713708645263,-500.0,0.00016885,2]
[323141517,1713708645272,-500.0,0.00016885,2]
[323141518,1713708645281,-500.0,0.00016885,2]
[323141519,1713708645290,-500.0,0.00016885,2]
[323141520,1713708645299,-500.0,0.00016885,2]
[323141521,1713708645308,-500.0,0.00016885,2]
[323141522,1713708645317,-500.0,0.00016885,2]
[323141523,1713708645326,-500.0,0.00016885,2]
[323141524,1713708645335,-500.0,0.00016885,2]
[323141525,1713708645344,-500.0,0.00016885,2]
[323141526,1713708645353,-500.0,0.00016885,2]
[323141527,1713708645361,-500.0,0.00016885,2]
[323141528,1713708645371,-592.21,0.00016885,2]
[323141529,1713708645380,-500.0,0.00016885,2]
[323141530,1713708645389,-500.0,0.00016885,2]
[323141531,1713708645398,-500.0,0.00016885,2]
[323141532,1713708645407,-500.0,0.00016885,2]
[323141533,1713708645416,-500.0,0.00016885,2]
[323141534,1713708645426,-500.0,0.00016885,2]
[323141535,1713708645435,-471.99,0.00016885,2]
[323141536,1713708645445,-500.0,0.00016885,2]
[323141537,1713708645454,-500.0,0.00016885,2]
[323141538,1713708645463,-460.23540016,0.00016885,2]
[323141539,1713708645472,-500.0,0.00016885,2]
[323141540,1713708645481,-555.18,0.00016885,2]
[323141541,1713708645490,-500.0,0.00016885,2]
[323141542,1713708645500,-500.0,0.00016885,2]
[323141543,1713708645509,-500.0,0.00016885,2]
[323141545,1713708645518,-150.0,0.00016885,2]
[323141546,1713708645528,-500.0,0.00016885,2]
[323141547,1713708645537,-164.87,0.00016885,2]
[323141548,1713708645547,-500.0,0.00016885,2]
[323141549,1713708645556,-500.0,0.00016885,2]
[323141550,1713708645570,-500.0,0.00016885,2]
[323141551,1713708645579,-500.0,0.00016885,2]
[323141552,1713708645588,-500.0,0.00016885,2]
[323141553,1713708645598,-500.0,0.00016885,2]
[323141554,1713708645608,-527.23328809,0.00016885,2]
[323141555,1713708645617,-500.0,0.00016885,2]
[323141556,1713708645626,-500.0,0.00016885,2]
[323141557,1713708645635,-500.0,0.00016885,2]
[323141558,1713708645645,-500.0,0.00016885,2]
[323141559,1713708645655,-500.0,0.00016885,2]
[323141560,1713708645664,-500.0,0.00016885,2]
[323141561,1713708645673,-500.0,0.00016885,2]
[323141562,1713708645692,-500.0,0.00016885,2]
[323141563,1713708645702,-500.0,0.00016885,2]
[323141564,1713708645711,-500.0,0.00016885,2]
[323141565,1713708645721,-500.0,0.00016885,2]
[323141566,1713708645731,-500.0,0.00016885,2]
[323141567,1713708645740,-523.62,0.00016885,2]
[323141568,1713708645749,-500.0,0.00016885,2]
[323141569,1713708645758,-500.0,0.00016885,2]
[323141570,1713708645768,-500.0,0.00016885,2]
[323141571,1713708645777,-527.22,0.00016885,2]
[323141572,1713708645786,-500.0,0.00016885,2]
[323141573,1713708645795,-506.38,0.00016885,2]
[323141574,1713708645804,-500.0,0.00016885,2]
[323141575,1713708645814,-500.0,0.00016885,2]
[323141576,1713708645823,-500.0,0.00016885,2]
[323141577,1713708645832,-500.0,0.00016885,2]
[323141578,1713708645842,-500.0,0.00016885,2]
[323141579,1713708645851,-500.0,0.00016885,2]
[323141580,1713708645861,-958.35,0.00016885,2]
[323141581,1713708645870,-500.0,0.00016885,2]
[323141582,1713708645879,-636.55,0.00016885,2]
[323141583,1713708645888,-500.0,0.00016885,2]
[323141584,1713708645897,-584.53,0.00016885,2]
[323141585,1713708645906,-500.0,0.00016885,2]
[323141586,1713708645915,-500.0,0.00016885,2]
[323141587,1713708645924,-500.0,0.00016885,2]
[323141588,1713708645934,-500.0,0.00016885,2]
[323141589,1713708645943,-500.0,0.00016885,2]
[323141590,1713708645952,-500.0,0.00016885,2]
[323141591,1713708645962,-500.0,0.00016885,2]
[323141592,1713708645971,-500.0,0.00016885,2]
[323141594,1713708645981,-500.0,0.00016885,2]
[323141595,1713708645990,-417.6148801,0.00016885,2]
[323141597,1713708646000,-500.0,0.00016885,2]
[323141599,1713708646009,-500.0,0.00016885,2]
[323141600,1713708646018,-500.0,0.00016885,2]
[323141602,1713708646028,-1000.0,0.00016885,2]
[323141604,1713708646037,-500.0,0.00016885,2]
[323141605,1713708646047,-500.0,0.00016885,2]
[323141607,1713708646057,-500.0,0.00016885,2]
[323141609,1713708646068,-500.0,0.00016885,2]
[323141611,1713708646079,-10000.0,0.00016886,2]
[323141612,1713708646089,-500.0,0.0001698,2]
[323141614,1713708646099,-500.0,0.0001698,2]
[323141616,1713708646109,-500.0,0.0001698,2]
[323141618,1713708646119,-500.0,0.0001698,2]
[323141619,1713708646129,-500.0,0.0001698,2]
[323141621,1713708646140,-500.0,0.0001698,2]
[323141623,1713708646149,-500.0,0.0001698,2]
[323141624,1713708646158,-500.0,0.0001698,2]
[323141626,1713708646168,-500.0,0.0001698,2]
[323141628,1713708646179,-500.0,0.0001698,2]
[323141629,1713708646189,-500.0,0.0001698,2]
[323141631,1713708646199,-500.0,0.0001698,2]
[323141633,1713708646209,-500.0,0.0001698,2]
[323141634,1713708646219,-756.33,0.0001698,2]
[323141636,1713708646233,-500.0,0.0001698,2]
[323141638,1713708646243,-500.0,0.0001698,2]
[323141640,1713708646253,-500.0,0.0001698,2]
[323141642,1713708646263,-150.6488984,0.0001698,2]
[323141643,1713708646274,-500.0,0.0001698,2]
[323141645,1713708646284,-500.0,0.0001698,2]
[323141647,1713708646294,-500.0,0.0001698,2]
[323141649,1713708646305,-500.0,0.0001698,2]
[323141650,1713708646315,-500.0,0.0001698,2]
[323141652,1713708646327,-891.06,0.0001698,2]
[323141654,1713708646338,-500.0,0.0001698,2]
[323141656,1713708646348,-500.0,0.0001698,2]
[323141658,1713708646357,-500.0,0.0001698,2]
[323141660,1713708646368,-500.0,0.0001698,2]
[323141661,1713708646378,-500.0,0.0001698,2]
[323141663,1713708646388,-621.23,0.0001698,2]
[323141665,1713708646399,-500.0,0.0001698,2]
[323141667,1713708646410,-500.0,0.0001698,2]
[323141669,1713708646420,-500.0,0.0001698,2]
[323141670,1713708646430,-500.0,0.0001698,2]
[323141672,1713708646441,-500.0,0.0001698,2]
[323141674,1713708646452,-500.0,0.0001698,2]
[323141676,1713708646463,-500.0,0.0001698,2]
[323141678,1713708646474,-500.0,0.0001698,2]
[323141679,1713708646484,-621.67,0.0001698,2]
[323141681,1713708646496,-500.0,0.0001698,2]
[323141683,1713708646506,-500.0,0.0001698,2]
[323141694,1713708646517,-500.0,0.0001698,2]
[323141695,1713708646784,-465.4424497,0.0001698,2]
[323141696,1713708646796,-807.75,0.0001698,2]
[323141697,1713708646806,-500.0,0.0001698,2]
[323141698,1713708646816,-500.0,0.0001698,2]
[323141699,1713708646828,-901.18,0.0001698,2]
[323141700,1713708646838,-543.77,0.0001698,2]
[323141701,1713708646848,-500.0,0.0001698,2]
[323141702,1713708646858,-500.0,0.0001698,2]
[323141703,1713708646868,-500.0,0.0001698,2]
[323141704,1713708646878,-636.82,0.0001698,2]
[323141705,1713708646888,-576.01,0.0001698,2]
[323141706,1713708646898,-525.76,0.0001698,2]
[323141707,1713708646909,-684.56,0.0001698,2]
[323141708,1713708646918,-500.0,0.0001698,2]
[323141709,1713708646928,-1809.3,0.0001698,2]
[323141710,1713708646937,-4696.45,0.0001698,2]
[323141711,1713708646950,-2237.99,0.0001698,2]
[323141712,1713708646987,-500.0,0.0001698,2]
[323141713,1713708646998,-500.0,0.0001698,2]
[323141714,1713708647007,-1264.58,0.0001698,2]
[323141715,1713708647017,-825.88,0.0001698,2]
[323141716,1713708647027,-640.47,0.0001698,2]
[323141717,1713708647037,-3204.7,0.0001698,2]
[323141718,1713708647047,-990.24,0.0001698,2]
[323141719,1713708647057,-500.0,0.0001698,2]
[323141720,1713708647067,-500.0,0.0001698,2]
[323141721,1713708647078,-780.52,0.0001698,2]
[323141722,1713708647088,-857.78,0.0001698,2]
[323141723,1713708647099,-8966.99,0.0001698,2]
[323141724,1713708647109,-917.16,0.0001698,2]
[323141725,1713708647119,-500.0,0.0001698,2]
[323141726,1713708647130,-500.0,0.0001698,2]
[323141727,1713708647140,-500.0,0.0001698,2]
[323141728,1713708647150,-500.0,0.0001698,2]
[323141729,1713708647160,-500.0,0.0001698,2]
[323141730,1713708647170,-500.0,0.0001698,2]
[323141731,1713708647180,-786.53,0.0001698,2]
[323141732,1713708647192,-500.0,0.0001698,2]
[323141733,1713708647202,-802.6,0.0001698,2]
[323141734,1713708647214,-500.0,0.0001698,2]
[323141735,1713708647223,-500.0,0.0001698,2]
[323141736,1713708647234,-500.0,0.0001698,2]
[323141737,1713708647245,-500.0,0.0001698,2]
[323141738,1713708647256,-2135.34,0.0001698,2]
[323141739,1713708647266,-500.0,0.0001698,2]
[323141740,1713708647276,-500.0,0.0001698,2]
[323141741,1713708647287,-1225.56,0.0001698,2]
[323141742,1713708647298,-500.0,0.0001698,2]
[323141743,1713708647309,-500.0,0.0001698,2]
[323141744,1713708647324,-500.0,0.0001698,2]
[323141745,1713708647334,-500.0,0.00016981,2]
[323141746,1713708647344,-821.73,0.00016981,2]
[323141747,1713708647354,-1356.06,0.00016981,2]
[323141748,1713708647365,-500.0,0.00016981,2]
[323141749,1713708647375,-500.0,0.00016981,2]
[323141750,1713708647386,-500.0,0.00016981,2]
[323141751,1713708647396,-500.0,0.00016981,2]
[323141752,1713708647406,-500.0,0.00016981,2]
[323141753,1713708647416,-426.09265989,0.00016981,2]
[323141754,1713708647426,-985.32,0.00016981,2]
[323141755,1713708647436,-859.33,0.00016981,2]
[323141756,1713708647446,-658.47,0.00016981,2]
[323141757,1713708647456,-500.0,0.00016981,2]
[323141758,1713708647467,-540.84,0.00016981,2]
[323141759,1713708647477,-500.0,0.00016981,2]
[323141760,1713708647488,-500.0,0.00016981,2]
[323141761,1713708647499,-500.0,0.00016981,2]
[323141762,1713708647509,-500.0,0.00016981,2]
[323141763,1713708647519,-500.0,0.00016981,2]
[323141764,1713708647530,-664.18,0.00016981,2]
[323141765,1713708647541,-500.0,0.00016982,2]
[323141766,1713708647552,-500.0,0.00016982,2]
[323141767,1713708647566,-500.0,0.00016982,2]
[323141768,1713708647576,-500.0,0.00016982,2]
[323141769,1713708647586,-500.0,0.00016982,2]
[323141770,1713708647597,-500.0,0.00016982,2]
[323141771,1713708647608,-500.0,0.00016982,2]
[323141772,1713708647619,-500.0,0.00016982,2]
[323141773,1713708647630,-500.0,0.00016982,2]
[323141774,1713708647641,-500.0,0.00016982,2]
[323141775,1713708647652,-500.0,0.00016982,2]
[323141776,1713708647661,-500.0,0.00016982,2]
[323141777,1713708647671,-500.0,0.00016982,2]
[323141778,1713708647681,-500.0,0.00016982,2]
[323141779,1713708647691,-500.0,0.00016982,2]
[323141780,1713708647702,-500.0,0.00016982,2]
[323141781,1713708647713,-500.0,0.00016982,2]
[323141782,1713708647723,-514.58,0.00016982,2]
[323141783,1713708647734,-590.55,0.00016982,2]
[323141784,1713708647744,-500.0,0.00016982,2]
[323141785,1713708647755,-500.0,0.00016982,2]
[323141786,1713708647766,-500.0,0.00016982,2]
[323141787,1713708647778,-500.0,0.00016982,2]
[323141788,1713708647788,-1855.35,0.00016982,2]
[323141789,1713708647800,-500.0,0.00016982,2]
[323141790,1713708647810,-500.0,0.00016982,2]
[323141791,1713708647821,-500.0,0.00016982,2]
[323141792,1713708647831,-500.0,0.00016982,2]
[323141793,1713708647840,-500.0,0.00016982,2]
[323141794,1713708647850,-500.0,0.00016982,2]
[323141795,1713708647860,-500.0,0.00016982,2]
[323141796,1713708647870,-500.0,0.00016982,2]
[323141797,1713708647879,-500.0,0.00016982,2]
[323141798,1713708647890,-735.09,0.00016982,2]
[323141799,1713708647901,-500.0,0.00016982,2]
[323141800,1713708647913,-500.0,0.00016982,2]
[323141801,1713708647923,-500.0,0.00016982,2]
[323141802,1713708647933,-500.0,0.00016982,2]
[323141803,1713708647944,-500.0,0.00016982,2]
[323141804,1713708647953,-500.0,0.00016982,2]
[323141805,1713708647963,-500.0,0.00016982,2]
[323141806,1713708647973,-500.0,0.00016982,2]
[323141807,1713708647984,-500.0,0.00016982,2]
[323141808,1713708647994,-500.0,0.00016982,2]
[323141809,1713708648004,-500.0,0.00016982,2]
[323141810,1713708648014,-500.0,0.00016982,2]
[323141811,1713708648027,-500.0,0.00016982,2]
[323141812,1713708648039,-500.0,0.00016982,2]
[323141813,1713708648049,-500.0,0.00016982,2]
[323141814,1713708648059,-500.0,0.00016983,2]
[323141815,1713708648069,-500.0,0.00016983,2]
[323141816,1713708648080,-500.0,0.00016983,2]
[323141817,1713708648089,-500.0,0.00016983,2]
[323141818,1713708648098,-500.0,0.00016983,2]
[323141819,1713708648107,-502.49,0.00016983,2]
[323141820,1713708648117,-500.0,0.00016983,2]
[323141821,1713708648127,-500.0,0.00016983,2]
[323141822,1713708648137,-500.0,0.00016983,2]
[323141823,1713708648146,-500.0,0.00016983,2]
[323141824,1713708648155,-500.0,0.00016983,2]
[323141825,1713708648165,-500.0,0.00016983,2]
[323141826,1713708648174,-470.0,0.00016983,2]
[323141827,1713708648183,-500.0,0.00016983,2]
[323141828,1713708648192,-500.0,0.00016983,2]
[323141829,1713708648202,-500.0,0.00016983,2]
[323141830,1713708648211,-500.0,0.00016983,2]
[323141831,1713708648220,-500.0,0.00016983,2]
[323141832,1713708648229,-500.0,0.00016983,2]
[323141833,1713708648239,-500.0,0.00016983,2]
[323141834,1713708648248,-500.0,0.00016983,2]
[323141835,1713708648257,-500.0,0.00016983,2]
[323141836,1713708648266,-500.0,0.00016984,2]
[323141837,1713708648275,-150.0,0.00017,2]
[323141838,1713708648284,-250.0,0.000171,2]
[323141839,1713708648294,-257.9,0.000171,2]
[323141840,1713708648304,-216.06752511,0.00017149,2]
[323141841,1713708648313,-195.96513086,0.00017157,2]
[323141842,1713708648323,-1755.42,0.00017158,2]
[323141843,1713708648333,-12340.97,0.00017158,2]
[323141844,1713708648343,-633.34,0.00017158,2]
[323141845,1713708648352,-493.06958834,0.00017158,2]
[323141846,1713708648361,-500.0,0.00017158,2]
[323141847,1713708648371,-532.37,0.00017158,2]
[323141848,1713708648380,-960.74,0.00017158,2]
[323141849,1713708648390,-1570.65,0.00017158,2]
[323141850,1713708648400,-718.17,0.00017158,2]
[323141851,1713708648409,-998.17,0.00017158,2]
[323141852,1713708648419,-1107.77,0.00017158,2]
[323141853,1713708648428,-500.0,0.00017158,2]
[323141854,1713708648438,-855.03,0.00017158,2]
[323141855,1713708648447,-951.93,0.00017158,2]
[323141856,1713708648456,-606.87,0.00017158,2]
[323141857,1713708648466,-597.82,0.00017158,2]
[323141858,1713708648477,-645.01,0.00017158,2]
[323141859,1713708648486,-500.0,0.00017158,2]
[323141860,1713708648496,-4233.45,0.00017158,2]
[323141861,1713708648505,-1108.52,0.00017158,2]
[323141862,1713708648514,-796.2,0.00017158,2]
[323141863,1713708648524,-1053.91,0.00017158,2]
[323141864,1713708648533,-1073.0,0.00017158,2]
[323141865,1713708648542,-514.37,0.00017158,2]
[323141866,1713708648552,-915.62,0.00017158,2]
[323141867,1713708648564,-2387.28,0.00017158,2]
[323141868,1713708648574,-2131.68,0.00017158,2]
[323141869,1713708648585,-2752.74,0.00017158,2]
[323141870,1713708648595,-500.0,0.00017158,2]
[323141871,1713708648605,-1180.22,0.00017158,2]
[323141872,1713708648614,-649.07,0.00017158,2]
[323141873,1713708648623,-1202.96,0.00017158,2]
[323141874,1713708648634,-1490.94,0.00017158,2]
[323141875,1713708648643,-3041.04,0.00017158,2]
[323141876,1713708648652,-790.08,0.00017158,2]
[323141877,1713708648661,-1424.52,0.00017158,2]
[323141878,1713708648670,-1806.49,0.00017158,2]
[323141879,1713708648679,-500.0,0.00017158,2]
[323141880,1713708648688,-1099.87,0.00017158,2]
[323141881,1713708648697,-1489.57,0.00017158,2]
[323141882,1713708648707,-1347.8,0.00017158,2]
[323141883,1713708648716,-659.51,0.00017158,2]
[323141884,1713708648725,-500.0,0.00017158,2]
[323141885,1713708648734,-734.37,0.00017158,2]
[323141886,1713708648743,-1303.06,0.00017158,2]
[323141887,1713708648752,-1368.0,0.00017158,2]
[323141888,1713708648761,-1131.41,0.00017158,2]
[323141889,1713708648770,-660.35,0.00017158,2]
[323141890,1713708648779,-500.0,0.00017158,2]
[323141891,1713708648789,-500.0,0.00017158,2]
[323141892,1713708648798,-500.0,0.00017158,2]
[323141893,1713708648807,-1004.24,0.00017158,2]
[323141894,1713708648816,-557.53,0.00017158,2]
[323141895,1713708648826,-952.39,0.00017158,2]
[323141896,1713708648835,-2237.54,0.00017158,2]
[323141897,1713708648844,-500.0,0.00017158,2]
[323141898,1713708648853,-1307.71,0.00017158,2]
[323141899,1713708648863,-994.17,0.00017158,2]
[323141900,1713708648872,-171.86159413,0.00017158,2]
[323141901,1713708648881,-1008.56,0.00017158,2]
[323141902,1713708648890,-615.19,0.00017158,2]
[323141903,1713708648900,-500.0,0.00017159,2]
[323141904,1713708648910,-677.37,0.00017159,2]
[323141905,1713708648920,-500.0,0.00017159,2]
[323141906,1713708648930,-500.0,0.00017159,2]
[323141907,1713708648940,-500.0,0.00017159,2]
[323141908,1713708648949,-500.0,0.00017159,2]
[323141909,1713708648959,-500.0,0.00017159,2]
[323141910,1713708648968,-500.0,0.00017159,2]
[323141911,1713708648989,-606.64,0.00017159,2]
[323141912,1713708649001,-502.64,0.00017159,2]
[323141913,1713708649011,-500.0,0.00017159,2]
[323141914,1713708649021,-500.0,0.00017159,2]
[323141915,1713708649031,-500.0,0.00017159,2]
[323141916,1713708649041,-500.0,0.00017159,2]
[323141917,1713708649052,-500.0,0.00017159,2]
[323141918,1713708649063,-500.0,0.00017159,2]
[323141919,1713708649075,-500.0,0.00017159,2]
[323141920,1713708649086,-500.0,0.00017159,2]
[323141921,1713708649097,-500.0,0.00017159,2]
[323141922,1713708649107,-500.0,0.00017159,2]
[323141923,1713708649117,-500.0,0.00017159,2]
[323141924,1713708649128,-500.0,0.00017159,2]
[323141925,1713708649138,-500.0,0.00017159,2]
[323141926,1713708649149,-500.0,0.00017159,2]
[323141927,1713708649159,-500.0,0.00017159,2]
[323141928,1713708649170,-594.22,0.00017159,2]
[323141929,1713708649181,-500.0,0.00017159,2]